[Event "*** SCC Grand Prix: Titled Tuesday Blitz"]
[Site "Chess.com"]
[Date "2020.07.07"]
[Round "8"]
[White "vesalhamedinia"]
[Black "Susal_De_Silva"]
[Result "1/2-1/2"]
[WhiteElo "2219"]
[BlackElo "2349"]
[TimeControl "180+1"]
[EndTime "11:38:34 PDT"]
[Termination "Game drawn by repetition"]

1. d4 {[%clk 0:03:00.9]} 1... Nf6 {[%clk 0:03:00.1]} 2. c4 {[%clk 0:03:00.3]}
2... e6 {[%clk 0:03:00.3]} 3. Nf3 {[%clk 0:02:59.6]} 3... b6 {[%clk 0:02:59.9]}
4. a3 {[%clk 0:02:57.4]} 4... Bb7 {[%clk 0:03:00.8]} 5. Nc3 {[%clk 0:02:57.1]}
5... Ne4 {[%clk 0:03:00.2]} 6. Nxe4 {[%clk 0:02:51.7]} 6... Bxe4 {[%clk
0:03:01.1]} 7. e3 {[%clk 0:02:51.6]} 7... g6 {[%clk 0:03:01]} 8. Be2 {[%clk
0:02:51.7]} 8... Bg7 {[%clk 0:03:00.3]} 9. O-O {[%clk 0:02:51.6]} 9... O-O
{[%clk 0:03:00.4]} 10. b4 {[%clk 0:02:49.4]} 10... a5 {[%clk 0:02:58.6]} 11. Bb2
{[%clk 0:02:48.6]} 11... d6 {[%clk 0:02:57.9]} 12. Nd2 {[%clk 0:02:46.7]} 12...
Bb7 {[%clk 0:02:56.2]} 13. Bf3 {[%clk 0:02:46.8]} 13... Bxf3 {[%clk 0:02:51.3]}
14. Qxf3 {[%clk 0:02:44.8]} 14... Nd7 {[%clk 0:02:52.2]} 15. Rfd1 {[%clk
0:02:34.9]} 15... Qe7 {[%clk 0:02:49.7]} 16. Qc6 {[%clk 0:02:29.8]} 16... Ra7
{[%clk 0:02:47.3]} 17. Bc3 {[%clk 0:02:20]} 17... a4 {[%clk 0:02:39.8]} 18. Rac1
{[%clk 0:02:10.7]} 18... f5 {[%clk 0:02:37.5]} 19. Qf3 {[%clk 0:01:47.9]} 19...
e5 {[%clk 0:02:24.2]} 20. dxe5 {[%clk 0:01:42.1]} 20... Nxe5 {[%clk 0:02:22.2]}
21. Qd5+ {[%clk 0:01:41.1]} 21... Kh8 {[%clk 0:02:20.5]} 22. Nf3 {[%clk
0:01:27.5]} 22... Raa8 {[%clk 0:01:32.3]} 23. Nxe5 {[%clk 0:01:23.4]} 23... dxe5
{[%clk 0:01:33.2]} 24. Qc6 {[%clk 0:01:08.1]} 24... Rad8 {[%clk 0:01:20.1]} 25.
Qxa4 {[%clk 0:01:04.6]} 25... f4 {[%clk 0:01:15.3]} 26. exf4 {[%clk 0:01:01.4]}
26... Rxf4 {[%clk 0:01:12.5]} 27. Rxd8+ {[%clk 0:00:50.4]} 27... Qxd8 {[%clk
0:01:13.4]} 28. Rd1 {[%clk 0:00:49.7]} 28... Qf8 {[%clk 0:01:06.5]} 29. f3
{[%clk 0:00:28.5]} 29... Rxc4 {[%clk 0:01:04]} 30. Bb2 {[%clk 0:00:19.9]} 30...
h6 {[%clk 0:00:59.8]} 31. Qd7 {[%clk 0:00:17]} 31... Rc2 {[%clk 0:00:55.8]} 32.
Ba1 {[%clk 0:00:16.6]} 32... Qf4 {[%clk 0:00:49.3]} 33. Qd3 {[%clk 0:00:14.6]}
33... Rc6 {[%clk 0:00:36.6]} 34. Qe2 {[%clk 0:00:11.4]} 34... Kh7 {[%clk
0:00:34.9]} 35. g3 {[%clk 0:00:10.9]} 35... Qf5 {[%clk 0:00:33.9]} 36. Kg2
{[%clk 0:00:09.3]} 36... h5 {[%clk 0:00:29.3]} 37. h4 {[%clk 0:00:08.9]} 37...
Rc2 {[%clk 0:00:22.2]} 38. Rd2 {[%clk 0:00:08.6]} 38... Rxd2 {[%clk 0:00:21.3]}
39. Qxd2 {[%clk 0:00:09.5]} 39... e4 {[%clk 0:00:21.4]} 40. Bxg7 {[%clk
0:00:08.9]} 40... Qxf3+ {[%clk 0:00:19.4]} 41. Kh2 {[%clk 0:00:09]} 41... Kxg7
{[%clk 0:00:18.2]} 42. Qd7+ {[%clk 0:00:08.7]} 42... Qf7 {[%clk 0:00:18.6]} 43.
Qd4+ {[%clk 0:00:08.6]} 43... Kh7 {[%clk 0:00:18.8]} 44. Qxe4 {[%clk 0:00:08.9]}
44... Qa2+ {[%clk 0:00:16.4]} 45. Kh3 {[%clk 0:00:09.1]} 45... Qxa3 {[%clk
0:00:16.6]} 46. Qe7+ {[%clk 0:00:08.1]} 46... Kg8 {[%clk 0:00:17]} 47. Qxc7
{[%clk 0:00:07.7]} 47... Qxb4 {[%clk 0:00:17]} 48. Qc8+ {[%clk 0:00:07.9]} 48...
Qf8 {[%clk 0:00:16.4]} 49. Qe6+ {[%clk 0:00:07.4]} 49... Qf7 {[%clk 0:00:16.4]}
50. Qxb6 {[%clk 0:00:07.3]} 50... Kh7 {[%clk 0:00:16.3]} 51. Qd6 {[%clk
0:00:06.5]} 51... Qf1+ {[%clk 0:00:15.7]} 52. Kh2 {[%clk 0:00:06.3]} 52... Qf2+
{[%clk 0:00:16.6]} 53. Kh1 {[%clk 0:00:06.3]} 53... Qf3+ {[%clk 0:00:15.3]} 54.
Kh2 {[%clk 0:00:06.2]} 54... Qf7 {[%clk 0:00:16.2]} 55. Qe5 {[%clk 0:00:05.2]}
55... Qb7 {[%clk 0:00:13.9]} 56. Qe2 {[%clk 0:00:03.8]} 56... Kg8 {[%clk
0:00:13.6]} 57. Qd2 {[%clk 0:00:04.2]} 57... Kf7 {[%clk 0:00:13.7]} 58. Qc2
{[%clk 0:00:04.4]} 58... Qb6 {[%clk 0:00:12.5]} 59. Qc4+ {[%clk 0:00:04.2]}
59... Kf6 {[%clk 0:00:12.2]} 60. Qc3+ {[%clk 0:00:04.1]} 60... Kf5 {[%clk
0:00:12.4]} 61. Qd3+ {[%clk 0:00:03.8]} 61... Ke5 {[%clk 0:00:12.6]} 62. Qe2+
{[%clk 0:00:03.6]} 62... Kf6 {[%clk 0:00:11.8]} 63. Qf3+ {[%clk 0:00:03.5]}
63... Ke5 {[%clk 0:00:10.7]} 64. Qc3+ {[%clk 0:00:03.9]} 64... Qd4 {[%clk
0:00:09.8]} 65. Qf3 {[%clk 0:00:04.4]} 65... Qd2+ {[%clk 0:00:08.9]} 66. Kh3
{[%clk 0:00:04.9]} 66... Qd7+ {[%clk 0:00:09.6]} 67. Kg2 {[%clk 0:00:05.3]}
67... Qd2+ {[%clk 0:00:09.5]} 68. Qf2 {[%clk 0:00:05.3]} 68... Qd5+ {[%clk
0:00:09.4]} 69. Qf3 {[%clk 0:00:05.5]} 69... Qd2+ {[%clk 0:00:09.4]} 70. Qf2
{[%clk 0:00:05.8]} 70... Qd5+ {[%clk 0:00:09.2]} 71. Qf3 {[%clk 0:00:06.1]}
71... Qe6 {[%clk 0:00:09.2]} 72. Qe3+ {[%clk 0:00:06.1]} 72... Kf5 {[%clk
0:00:09.9]} 73. Qg5+ {[%clk 0:00:06.3]} 73... Ke4 {[%clk 0:00:09.7]} 74. Qf4+
{[%clk 0:00:06.8]} 74... Kd3 {[%clk 0:00:09.5]} 75. Qf3+ {[%clk 0:00:06.8]}
75... Kd2 {[%clk 0:00:09.8]} 76. Qf4+ {[%clk 0:00:06.9]} 76... Ke1 {[%clk
0:00:09.8]} 77. Qf2+ {[%clk 0:00:06.9]} 77... Kd1 {[%clk 0:00:10.2]} 78. Qd4+
{[%clk 0:00:07.1]} 78... Ke1 {[%clk 0:00:10.1]} 79. Qf2+ {[%clk 0:00:07]} 79...
Kd1 {[%clk 0:00:09.9]} 80. Qd4+ {[%clk 0:00:07.6]} 80... Ke2 {[%clk 0:00:09.8]}
81. Qf2+ {[%clk 0:00:07.2]} 81... Kd3 {[%clk 0:00:10.4]} 82. Qf3+ {[%clk
0:00:07.7]} 82... Kd2 {[%clk 0:00:10.7]} 83. Qf4+ {[%clk 0:00:08]} 83... Ke1
{[%clk 0:00:10.3]} 84. Qf2+ {[%clk 0:00:07.5]} 1/2-1/2

[Event "*** SCC Grand Prix: Titled Tuesday Blitz"]
[Site "Chess.com"]
[Date "2020.07.07"]
[Round "8"]
[White "Harsha_Bharathakoti"]
[Black "Timerkhanov"]
[Result "1/2-1/2"]
[WhiteElo "2780"]
[BlackElo "2629"]
[TimeControl "180+1"]
[EndTime "11:38:36 PDT"]
[Termination "Game drawn - insufficient material"]

1. d4 {[%clk 0:03:00.9]} 1... d5 {[%clk 0:02:58.7]} 2. c4 {[%clk 0:03:00.6]}
2... c6 {[%clk 0:02:59]} 3. Nf3 {[%clk 0:03:00.8]} 3... Nf6 {[%clk 0:02:59.4]}
4. Nc3 {[%clk 0:03:01.4]} 4... dxc4 {[%clk 0:02:59.8]} 5. e4 {[%clk 0:03:01.4]}
5... b5 {[%clk 0:02:59.4]} 6. Be2 {[%clk 0:02:45.4]} 6... e6 {[%clk 0:02:44.9]}
7. b3 {[%clk 0:02:12]} 7... b4 {[%clk 0:02:39.3]} 8. e5 {[%clk 0:02:12]} 8...
Nd5 {[%clk 0:02:00.9]} 9. Nxd5 {[%clk 0:02:11.7]} 9... cxd5 {[%clk 0:02:01.1]}
10. bxc4 {[%clk 0:02:12.3]} 10... dxc4 {[%clk 0:02:02]} 11. Bxc4 {[%clk
0:02:11.9]} 11... Bb7 {[%clk 0:01:43.9]} 12. O-O {[%clk 0:00:34.3]} 12... Be7
{[%clk 0:01:39.8]} 13. Be3 {[%clk 0:00:31.3]} 13... O-O {[%clk 0:01:38.6]} 14.
Qe2 {[%clk 0:00:31.4]} 14... Nd7 {[%clk 0:01:36.5]} 15. Ba6 {[%clk 0:00:26.8]}
15... Bd5 {[%clk 0:01:30.9]} 16. Ne1 {[%clk 0:00:26]} 16... Nb6 {[%clk
0:01:08.6]} 17. Nd3 {[%clk 0:00:25.2]} 17... Nc4 {[%clk 0:00:52.1]} 18. Nf4
{[%clk 0:00:24.8]} 18... Nxe3 {[%clk 0:00:48.5]} 19. fxe3 {[%clk 0:00:25.3]}
19... Be4 {[%clk 0:00:47.3]} 20. Rfc1 {[%clk 0:00:18]} 20... Qb6 {[%clk
0:00:43.6]} 21. Bd3 {[%clk 0:00:15.3]} 21... Qb7 {[%clk 0:00:37.8]} 22. Bxe4
{[%clk 0:00:14.8]} 22... Qxe4 {[%clk 0:00:37.7]} 23. Qd3 {[%clk 0:00:15.2]}
23... Qxd3 {[%clk 0:00:36.7]} 24. Nxd3 {[%clk 0:00:16.1]} 24... Rfc8 {[%clk
0:00:36.9]} 25. Kf2 {[%clk 0:00:14.7]} 25... a5 {[%clk 0:00:36.9]} 26. e4 {[%clk
0:00:15]} 26... Bg5 {[%clk 0:00:32.2]} 27. Rxc8+ {[%clk 0:00:12.7]} 27... Rxc8
{[%clk 0:00:33.1]} 28. Nc5 {[%clk 0:00:09.2]} 28... Bd2 {[%clk 0:00:31.3]} 29.
Rd1 {[%clk 0:00:04.6]} 29... Bc3 {[%clk 0:00:29.4]} 30. Ke3 {[%clk 0:00:04.5]}
30... Kf8 {[%clk 0:00:29]} 31. Rd3 {[%clk 0:00:02.9]} 31... Ke7 {[%clk
0:00:20.7]} 32. a4 {[%clk 0:00:03.3]} 32... Rb8 {[%clk 0:00:18.9]} 33. Nb3
{[%clk 0:00:03.6]} 33... Ra8 {[%clk 0:00:17.4]} 34. h3 {[%clk 0:00:03.5]} 34...
h5 {[%clk 0:00:17.2]} 35. Rd1 {[%clk 0:00:02.4]} 35... g6 {[%clk 0:00:17.3]} 36.
Rf1 {[%clk 0:00:01.7]} 36... Ra7 {[%clk 0:00:17.3]} 37. Kd3 {[%clk 0:00:02.2]}
37... Rd7 {[%clk 0:00:17]} 38. Rf2 {[%clk 0:00:02.4]} 38... Ra7 {[%clk 0:00:17]}
39. Rc2 {[%clk 0:00:03.1]} 39... Kd7 {[%clk 0:00:16.2]} 40. Nc5+ {[%clk
0:00:03.2]} 40... Kc6 {[%clk 0:00:15.6]} 41. Kc4 {[%clk 0:00:03.8]} 41... Ra8
{[%clk 0:00:15]} 42. d5+ {[%clk 0:00:04.2]} 42... Kb6 {[%clk 0:00:13.4]} 43. Nb3
{[%clk 0:00:03]} 43... Rc8+ {[%clk 0:00:13]} 44. Kd3 {[%clk 0:00:03.5]} 44...
Rd8 {[%clk 0:00:13.2]} 45. Kc4 {[%clk 0:00:03.5]} 45... Rc8+ {[%clk 0:00:13.3]}
46. Kd3 {[%clk 0:00:03.3]} 46... Rd8 {[%clk 0:00:13.7]} 47. Rf2 {[%clk
0:00:03.7]} 47... exd5 {[%clk 0:00:13.4]} 48. Rxf7 {[%clk 0:00:04.3]} 48...
dxe4+ {[%clk 0:00:13.3]} 49. Kxe4 {[%clk 0:00:05.2]} 49... Rd1 {[%clk
0:00:12.3]} 50. Rf6+ {[%clk 0:00:05.4]} 50... Kc7 {[%clk 0:00:11.5]} 51. Rxg6
{[%clk 0:00:05.9]} 51... Re1+ {[%clk 0:00:11.7]} 52. Kd3 {[%clk 0:00:06.4]}
52... Rxe5 {[%clk 0:00:12.1]} 53. Kc4 {[%clk 0:00:06.4]} 53... Rf5 {[%clk
0:00:11.2]} 54. g4 {[%clk 0:00:05.1]} 54... hxg4 {[%clk 0:00:11.1]} 55. hxg4
{[%clk 0:00:06]} 55... Re5 {[%clk 0:00:11.5]} 56. Nc5 {[%clk 0:00:03.9]} 56...
Re1 {[%clk 0:00:07.8]} 57. Na6+ {[%clk 0:00:02.8]} 57... Kb7 {[%clk 0:00:05.4]}
58. Nc5+ {[%clk 0:00:03.7]} 58... Kc7 {[%clk 0:00:05.7]} 59. Kb5 {[%clk
0:00:04.5]} 59... Re5 {[%clk 0:00:05.3]} 60. Rc6+ {[%clk 0:00:04.8]} 60... Kd8
{[%clk 0:00:05]} 61. Kc4 {[%clk 0:00:05.4]} 61... Re1 {[%clk 0:00:04.1]} 62. g5
{[%clk 0:00:04.4]} 62... Rg1 {[%clk 0:00:03.8]} 63. g6 {[%clk 0:00:05]} 63...
Ke7 {[%clk 0:00:03.8]} 64. Re6+ {[%clk 0:00:03.5]} 64... Kf8 {[%clk 0:00:04]}
65. Nd7+ {[%clk 0:00:03]} 65... Kg7 {[%clk 0:00:04.1]} 66. Nc5 {[%clk
0:00:02.2]} 66... Rxg6 {[%clk 0:00:03.8]} 67. Rxg6+ {[%clk 0:00:02.5]} 67...
Kxg6 {[%clk 0:00:04.1]} 68. Nb7 {[%clk 0:00:03.4]} 68... Kf6 {[%clk 0:00:04.3]}
69. Nxa5 {[%clk 0:00:04]} 69... Ke6 {[%clk 0:00:04.9]} 70. Nb3 {[%clk
0:00:02.2]} 70... Kd6 {[%clk 0:00:05]} 71. Kb5 {[%clk 0:00:03.1]} 71... Kc7
{[%clk 0:00:05.6]} 72. a5 {[%clk 0:00:04]} 72... Kb7 {[%clk 0:00:05.8]} 73. a6+
{[%clk 0:00:04.9]} 73... Ka7 {[%clk 0:00:05.5]} 74. Na5 {[%clk 0:00:05.5]} 74...
Ka8 {[%clk 0:00:04.6]} 75. Nb3 {[%clk 0:00:02.5]} 75... Ka7 {[%clk 0:00:04.5]}
76. Ka5 {[%clk 0:00:03.4]} 76... Be1 {[%clk 0:00:03.7]} 77. Nd4 {[%clk
0:00:02.5]} 77... b3+ {[%clk 0:00:04]} 78. Ka4 {[%clk 0:00:01.6]} 78... b2
{[%clk 0:00:04.5]} 79. Nb5+ {[%clk 0:00:02.5]} 79... Ka8 {[%clk 0:00:03]} 80.
Na3 {[%clk 0:00:03.4]} 80... Ka7 {[%clk 0:00:02.9]} 81. Kb5 {[%clk 0:00:03.4]}
81... Bd2 {[%clk 0:00:02.3]} 82. Nb1 {[%clk 0:00:04.3]} 82... Be1 {[%clk
0:00:02.2]} 83. Na3 {[%clk 0:00:04]} 83... Bd2 {[%clk 0:00:02.5]} 84. Kc4 {[%clk
0:00:03.3]} 84... Be1 {[%clk 0:00:02.8]} 85. Kb3 {[%clk 0:00:02.8]} 85... Kxa6
{[%clk 0:00:03.2]} 86. Kxb2 {[%clk 0:00:02.9]} 1/2-1/2

[Event "*** SCC Grand Prix: Titled Tuesday Blitz"]
[Site "Chess.com"]
[Date "2020.07.07"]
[Round "9"]
[White "andriipalchuk"]
[Black "tk22h"]
[Result "0-1"]
[WhiteElo "2424"]
[BlackElo "2302"]
[TimeControl "180+1"]
[EndTime "11:40:13 PDT"]
[Termination "tk22h won by resignation"]

1. e4 {[%clk 0:03:00.9]} 1... e5 {[%clk 0:02:59]} 2. Nf3 {[%clk 0:03:00.8]} 2...
Nc6 {[%clk 0:02:58.6]} 3. Nc3 {[%clk 0:02:59.9]} 3... Nf6 {[%clk 0:02:58]} 4. d4
{[%clk 0:03:00]} 4... exd4 {[%clk 0:02:57.4]} 5. Nxd4 {[%clk 0:03:00.9]} 5...
Bb4 {[%clk 0:02:56.6]} 6. Nxc6 {[%clk 0:03:01.5]} 6... bxc6 {[%clk 0:02:56.4]}
7. Bd3 {[%clk 0:03:01.6]} 7... O-O {[%clk 0:02:55.7]} 8. O-O {[%clk 0:03:01.5]}
8... d5 {[%clk 0:02:56.1]} 9. e5 {[%clk 0:03:01.7]} 9... Ng4 {[%clk 0:02:53.5]}
10. f4 {[%clk 0:02:56.2]} 10... Bc5+ {[%clk 0:02:52.2]} 11. Kh1 {[%clk
0:02:56.5]} 11... Qh4 {[%clk 0:02:51.8]} 12. h3 {[%clk 0:02:56.5]} 12... Qg3
{[%clk 0:02:50.9]} 0-1

[Event "*** SCC Grand Prix: Titled Tuesday Blitz"]
[Site "Chess.com"]
[Date "2020.07.07"]
[Round "9"]
[White "ArnieChipmunk"]
[Black "TheLawAdv"]
[Result "1/2-1/2"]
[WhiteElo "2308"]
[BlackElo "2078"]
[TimeControl "180+1"]
[EndTime "11:40:38 PDT"]
[Termination "Game drawn by agreement"]

1. e4 {[%clk 0:03:00.7]} 1... c5 {[%clk 0:02:58.7]} 2. Nf3 {[%clk 0:03:00.7]}
2... d6 {[%clk 0:02:58.5]} 3. d4 {[%clk 0:03:01.3]} 3... cxd4 {[%clk 0:02:59.4]}
4. Nxd4 {[%clk 0:03:02.2]} 4... Nf6 {[%clk 0:02:59.7]} 5. Nc3 {[%clk 0:03:02.7]}
5... e5 {[%clk 0:02:57.4]} 6. Nb3 {[%clk 0:03:01.7]} 6... Be6 {[%clk 0:02:56.8]}
7. Be3 {[%clk 0:03:01.8]} 7... Be7 {[%clk 0:02:56.2]} 8. f3 {[%clk 0:03:02]}
8... O-O {[%clk 0:02:56.6]} 9. Qd2 {[%clk 0:03:02.1]} 9... d5 {[%clk 0:02:56.9]}
10. exd5 {[%clk 0:03:00.8]} 10... Nxd5 {[%clk 0:02:56.7]} 11. Nxd5 {[%clk
0:03:00.8]} 11... Qxd5 {[%clk 0:02:57.6]} 12. O-O-O {[%clk 0:02:59.2]} 12...
Qxd2+ {[%clk 0:02:57.2]} 13. Rxd2 {[%clk 0:02:59.1]} 13... Nc6 {[%clk
0:02:57.6]} 14. Kb1 {[%clk 0:02:28.2]} 1/2-1/2

[Event "*** SCC Grand Prix: Titled Tuesday Blitz"]
[Site "Chess.com"]
[Date "2020.07.07"]
[Round "9"]
[White "Skatchkov_V"]
[Black "abykhovsky"]
[Result "1-0"]
[WhiteElo "2554"]
[BlackElo "2674"]
[TimeControl "180+1"]
[EndTime "11:40:53 PDT"]
[Termination "Skatchkov_V won by resignation"]

1. d4 {[%clk 0:03:00.8]} 1... Nf6 {[%clk 0:02:59.2]} 2. c4 {[%clk 0:03:00.6]}
2... c5 {[%clk 0:02:58.7]} 3. d5 {[%clk 0:03:00.7]} 3... b5 {[%clk 0:02:58.4]}
4. Nf3 {[%clk 0:03:00.6]} 4... b4 {[%clk 0:02:58]} 5. Qc2 {[%clk 0:02:59.6]}
5... g6 {[%clk 0:02:56.6]} 6. e4 {[%clk 0:02:59.9]} 6... Bg7 {[%clk 0:02:56.2]}
7. Bd3 {[%clk 0:02:54.3]} 7... O-O {[%clk 0:02:55.7]} 8. O-O {[%clk 0:02:54.5]}
8... d6 {[%clk 0:02:54.8]} 9. h3 {[%clk 0:02:55]} 9... a5 {[%clk 0:02:54.5]} 10.
Bf4 {[%clk 0:02:55.2]} 10... a4 {[%clk 0:02:54]} 11. Nbd2 {[%clk 0:02:55.1]}
11... a3 {[%clk 0:02:51.5]} 12. b3 {[%clk 0:02:54.5]} 12... Nh5 {[%clk
0:02:51.3]} 13. Bh2 {[%clk 0:02:54.3]} 13... Bxa1 {[%clk 0:02:50.8]} 14. Rxa1
{[%clk 0:02:55.2]} 14... e5 {[%clk 0:02:48.8]} 15. dxe6 {[%clk 0:02:54.1]} 15...
fxe6 {[%clk 0:02:48.5]} 16. e5 {[%clk 0:02:55]} 16... d5 {[%clk 0:02:47.5]} 17.
cxd5 {[%clk 0:02:51]} 17... exd5 {[%clk 0:02:47]} 18. Qxc5 {[%clk 0:02:51]} 1-0

[Event "*** SCC Grand Prix: Titled Tuesday Blitz"]
[Site "Chess.com"]
[Date "2020.07.07"]
[Round "9"]
[White "AlexOstrovskiy"]
[Black "Srisshhhtea"]
[Result "1-0"]
[WhiteElo "2651"]
[BlackElo "2501"]
[TimeControl "180+1"]
[EndTime "11:41:07 PDT"]
[Termination "AlexOstrovskiy won by resignation"]

1. d4 {[%clk 0:02:59.3]} 1... Nf6 {[%clk 0:02:59.2]} 2. Bf4 {[%clk 0:02:56.4]}
2... d5 {[%clk 0:02:57.4]} 3. e3 {[%clk 0:02:54.9]} 3... e6 {[%clk 0:02:57.8]}
4. Nd2 {[%clk 0:02:54.5]} 4... Bd6 {[%clk 0:02:58.4]} 5. Bg3 {[%clk 0:02:54]}
5... O-O {[%clk 0:02:54.5]} 6. Ngf3 {[%clk 0:02:53.8]} 6... c5 {[%clk
0:02:53.5]} 7. c3 {[%clk 0:02:53.4]} 7... Nc6 {[%clk 0:02:53]} 8. Bd3 {[%clk
0:02:48.6]} 8... b6 {[%clk 0:02:51.9]} 9. e4 {[%clk 0:02:47.4]} 9... Bxg3 {[%clk
0:02:45.3]} 10. hxg3 {[%clk 0:02:47]} 10... cxd4 {[%clk 0:02:40.5]} 11. e5
{[%clk 0:02:44]} 11... dxc3 {[%clk 0:02:35]} 12. exf6 {[%clk 0:02:37.8]} 12...
cxd2+ {[%clk 0:02:34]} 13. Qxd2 {[%clk 0:02:38.7]} 13... h6 {[%clk 0:02:31.7]}
14. fxg7 {[%clk 0:02:36.3]} 1-0

[Event "*** SCC Grand Prix: Titled Tuesday Blitz"]
[Site "Chess.com"]
[Date "2020.07.07"]
[Round "9"]
[White "stolencandy13"]
[Black "VladimirBugayev"]
[Result "1-0"]
[WhiteElo "2368"]
[BlackElo "2244"]
[TimeControl "180+1"]
[EndTime "11:41:15 PDT"]
[Termination "stolencandy13 won by resignation"]

1. e4 {[%clk 0:03:00.9]} 1... c6 {[%clk 0:02:57.2]} 2. d4 {[%clk 0:03:00.7]}
2... d5 {[%clk 0:02:57.3]} 3. e5 {[%clk 0:03:01.6]} 3... Bf5 {[%clk 0:02:56.1]}
4. Nf3 {[%clk 0:03:01.9]} 4... e6 {[%clk 0:02:55]} 5. h4 {[%clk 0:03:01.6]} 5...
h5 {[%clk 0:02:43.2]} 6. Bd3 {[%clk 0:03:00.9]} 6... Bxd3 {[%clk 0:02:33.3]} 7.
Qxd3 {[%clk 0:03:01.8]} 7... Nd7 {[%clk 0:02:25.1]} 8. Bg5 {[%clk 0:03:01.3]}
8... Qb6 {[%clk 0:02:18]} 9. Nbd2 {[%clk 0:02:59.8]} 9... c5 {[%clk 0:02:17.9]}
10. c4 {[%clk 0:02:58.8]} 10... Ne7 {[%clk 0:02:09.4]} 11. O-O {[%clk 0:02:57]}
11... Nc6 {[%clk 0:02:09.1]} 12. cxd5 {[%clk 0:02:55.9]} 12... exd5 {[%clk
0:02:08.4]} 13. e6 {[%clk 0:02:53.9]} 13... Nb4 {[%clk 0:01:53.1]} 14. exd7+
{[%clk 0:02:52]} 14... Kxd7 {[%clk 0:01:53.4]} 15. Qf5+ {[%clk 0:02:50.3]} 1-0

[Event "*** SCC Grand Prix: Titled Tuesday Blitz"]
[Site "Chess.com"]
[Date "2020.07.07"]
[Round "9"]
[White "GracefulYear"]
[Black "allvim"]
[Result "1/2-1/2"]
[WhiteElo "2432"]
[BlackElo "2292"]
[TimeControl "180+1"]
[EndTime "11:41:19 PDT"]
[Termination "Game drawn by agreement"]

1. d4 {[%clk 0:03:00.9]} 1... Nf6 {[%clk 0:02:59.8]} 2. c4 {[%clk 0:03:01.8]}
2... g6 {[%clk 0:02:59.3]} 3. Nf3 {[%clk 0:02:59.2]} 3... Bg7 {[%clk 0:02:56.5]}
4. g3 {[%clk 0:02:59.5]} 4... O-O {[%clk 0:02:55.7]} 5. Bg2 {[%clk 0:02:58.4]}
5... d5 {[%clk 0:02:56.6]} 6. cxd5 {[%clk 0:02:56.7]} 6... Nxd5 {[%clk
0:02:57.5]} 7. O-O {[%clk 0:02:56.8]} 7... Nc6 {[%clk 0:02:55.7]} 8. Nc3 {[%clk
0:02:56.4]} 8... Nxc3 {[%clk 0:02:50.9]} 9. bxc3 {[%clk 0:02:57.3]} 9... e5
{[%clk 0:02:43.7]} 10. Bb2 {[%clk 0:02:46.7]} 10... exd4 {[%clk 0:02:39.8]} 11.
cxd4 {[%clk 0:02:47.6]} 11... Bg4 {[%clk 0:02:39.5]} 12. Qb3 {[%clk 0:02:43.8]}
12... Bxf3 {[%clk 0:02:32.4]} 13. Bxf3 {[%clk 0:02:44.7]} 13... Nxd4 {[%clk
0:02:33.2]} 14. Bxd4 {[%clk 0:02:38.6]} 14... Qxd4 {[%clk 0:02:30.2]} 15. Rad1
{[%clk 0:02:37.9]} 15... Qb6 {[%clk 0:02:25.6]} 1/2-1/2

[Event "*** SCC Grand Prix: Titled Tuesday Blitz"]
[Site "Chess.com"]
[Date "2020.07.07"]
[Round "9"]
[White "Sam_ChessMood"]
[Black "GM_LOADING"]
[Result "1-0"]
[WhiteElo "2834"]
[BlackElo "2571"]
[TimeControl "180+1"]
[EndTime "11:41:21 PDT"]
[Termination "Sam_ChessMood won by resignation"]

1. e4 {[%clk 0:03:00.9]} 1... e5 {[%clk 0:02:59.5]} 2. Nf3 {[%clk 0:03:00.7]}
2... Nc6 {[%clk 0:02:59.5]} 3. Bb5 {[%clk 0:03:00.7]} 3... g6 {[%clk 0:02:59.3]}
4. c3 {[%clk 0:03:00.3]} 4... a6 {[%clk 0:02:58.7]} 5. Bc4 {[%clk 0:02:59.9]}
5... Bg7 {[%clk 0:02:47.9]} 6. d4 {[%clk 0:02:59.5]} 6... exd4 {[%clk
0:02:48.2]} 7. cxd4 {[%clk 0:02:56.6]} 7... b5 {[%clk 0:02:48.7]} 8. Be2 {[%clk
0:02:52.1]} 8... d6 {[%clk 0:02:44.7]} 9. d5 {[%clk 0:02:49.5]} 9... Nce7 {[%clk
0:02:40.3]} 10. a4 {[%clk 0:02:45]} 10... b4 {[%clk 0:02:37.6]} 11. O-O {[%clk
0:02:41.6]} 11... Nf6 {[%clk 0:02:37.4]} 12. Nbd2 {[%clk 0:02:40.3]} 12... O-O
{[%clk 0:02:37.5]} 13. h3 {[%clk 0:02:37.3]} 13... c6 {[%clk 0:02:35.1]} 14.
dxc6 {[%clk 0:02:34]} 14... Nxc6 {[%clk 0:02:36]} 15. Nc4 {[%clk 0:02:33.4]}
15... Nxe4 {[%clk 0:02:33.1]} 16. Qd5 {[%clk 0:02:32.2]} 1-0

[Event "*** SCC Grand Prix: Titled Tuesday Blitz"]
[Site "Chess.com"]
[Date "2020.07.07"]
[Round "9"]
[White "VincentKeymer"]
[Black "Grischuk"]
[Result "0-1"]
[WhiteElo "2892"]
[BlackElo "3065"]
[TimeControl "180+1"]
[EndTime "11:41:29 PDT"]
[Termination "Grischuk won by resignation"]

1. Nf3 {[%clk 0:03:00.9]} 1... Nf6 {[%clk 0:02:52.2]} 2. c4 {[%clk 0:03:00.6]}
2... c6 {[%clk 0:02:49.5]} 3. Nc3 {[%clk 0:03:00.5]} 3... d5 {[%clk 0:02:49.8]}
4. e3 {[%clk 0:03:01]} 4... e6 {[%clk 0:02:45]} 5. b3 {[%clk 0:03:01]} 5... Bd6
{[%clk 0:02:44.2]} 6. Bb2 {[%clk 0:03:01.5]} 6... O-O {[%clk 0:02:44.4]} 7. h3
{[%clk 0:03:01.2]} 7... Re8 {[%clk 0:02:38.8]} 8. Qc2 {[%clk 0:02:57.4]} 8... e5
{[%clk 0:02:35.2]} 9. cxd5 {[%clk 0:02:51.2]} 9... cxd5 {[%clk 0:02:36.1]} 10.
Nb5 {[%clk 0:02:51.5]} 10... Nc6 {[%clk 0:02:35.8]} 11. Nxd6 {[%clk 0:02:50.6]}
11... Qxd6 {[%clk 0:02:36.7]} 12. Bb5 {[%clk 0:02:48.6]} 12... Bd7 {[%clk
0:02:28.8]} 13. O-O {[%clk 0:02:44.7]} 13... Nb4 {[%clk 0:02:23.7]} 0-1

[Event "*** SCC Grand Prix: Titled Tuesday Blitz"]
[Site "Chess.com"]
[Date "2020.07.07"]
[Round "9"]
[White "zaur-mammadov"]
[Black "MergenKakabaev"]
[Result "1-0"]
[WhiteElo "2611"]
[BlackElo "2447"]
[TimeControl "180+1"]
[EndTime "11:41:35 PDT"]
[Termination "zaur-mammadov won by resignation"]

1. e4 {[%clk 0:03:00.9]} 1... e5 {[%clk 0:02:58.8]} 2. Nf3 {[%clk 0:03:00.1]}
2... Nc6 {[%clk 0:02:55.4]} 3. Nc3 {[%clk 0:03:00.5]} 3... Nf6 {[%clk
0:02:54.8]} 4. Be2 {[%clk 0:03:01.1]} 4... Bc5 {[%clk 0:02:51.7]} 5. Nxe5 {[%clk
0:03:00.1]} 5... Nxe5 {[%clk 0:02:50.1]} 6. d4 {[%clk 0:03:00.2]} 6... Bd6
{[%clk 0:02:50.7]} 7. dxe5 {[%clk 0:03:00.1]} 7... Bxe5 {[%clk 0:02:51.6]} 8.
Nb5 {[%clk 0:03:00.4]} 8... a6 {[%clk 0:02:46.9]} 9. f4 {[%clk 0:02:59.2]} 9...
Bxf4 {[%clk 0:02:45.9]} 10. Bxf4 {[%clk 0:02:57.9]} 10... axb5 {[%clk
0:02:45.9]} 11. e5 {[%clk 0:02:58.5]} 11... Ng8 {[%clk 0:02:39.2]} 12. O-O
{[%clk 0:02:57.6]} 12... Ne7 {[%clk 0:02:39.3]} 13. Bxb5 {[%clk 0:02:53.3]}
13... O-O {[%clk 0:02:38.7]} 14. Bd3 {[%clk 0:02:53.8]} 14... Ng6 {[%clk
0:02:38.5]} 15. Bg3 {[%clk 0:02:53.8]} 15... Qg5 {[%clk 0:02:36.9]} 16. Rf5
{[%clk 0:02:45.5]} 16... Qe3+ {[%clk 0:02:35.8]} 17. Bf2 {[%clk 0:02:42.5]}
17... Qh6 {[%clk 0:02:34.2]} 18. g3 {[%clk 0:02:32.2]} 18... d6 {[%clk
0:02:33.9]} 19. Rh5 {[%clk 0:02:31.9]} 1-0